[Event "20 ans"]
[Date "2016.10.28"]
[Round "SF2"]
[White "Radjabov, Teimour"]
[Black "Anand, Viswanathan"]
[Result "1/2-1/2"]
[WhiteElo "2788"]
[BlackElo "2802"]
[ECO "C54"]
[WhiteFed "AZE"]
[BlackFed "IND"]
[FCGameId "-567376608"]
[TimeControl "900+3"]

1. e4 {[%clk 0:15:05]} e5 {[%clk 0:15:05]} 2. Nf3 {[%clk 0:15:08]} Nc6  {[%clk 0:15:07]} 3. Bc4 {[%clk 0:15:10]} Bc5 {[%clk 0:15:09]} 4. c3  {[%clk 0:15:12]} Nf6 5. d3 d6 {[%clk 0:15:08]} 6. O-O {[%clk 0:15:14]} O-O  {[%clk 0:15:08]} 7. h3 {[%clk 0:15:09]} a6 {[%clk 0:15:07]} 8. Re1  {[%clk 0:14:53]} Ba7 {[%clk 0:15:08]} 9. Bb3 {[%clk 0:14:56]} h6  {[%clk 0:15:00]} 10. Nbd2 {[%clk 0:14:52]} Re8 {[%clk 0:14:49]} 11. Nf1  {[%clk 0:14:39]} Be6 {[%clk 0:14:50]} 12. Bc2 {[%clk 0:14:41]} d5  {[%clk 0:14:51]} 13. Qe2 {[%clk 0:14:43]} d4 {[%clk 0:14:45]} 14. Ng3  {[%clk 0:14:17]} Nd7 {[%clk 0:14:43]} 15. Bd2 {[%clk 0:14:00]} b5  {[%clk 0:14:10]} 16. a3 {[%clk 0:12:44]} a5 {[%clk 0:13:51]} 17. Qd1  {[%clk 0:12:13]} Bb6 {[%clk 0:12:30]} 18. Ne2 {[%clk 0:11:55]} a4  {[%clk 0:12:18]} 19. Rc1 {[%clk 0:11:40]} Nc5 {[%clk 0:11:24]} 20. cxd4  {[%clk 0:10:40]} Nxd4 {[%clk 0:10:55]} 21. Nfxd4 {[%clk 0:09:28]} exd4  {[%clk 0:10:55]} 22. Nf4 {[%clk 0:09:30]} Bb3 {[%clk 0:08:40]} 23. Bb4  {[%clk 0:06:09]} Bxc2 {[%clk 0:07:00]} 24. Rxc2 {[%clk 0:06:09]} Ne6  {[%clk 0:07:00]} 25. Qg4 {[%clk 0:05:27]} Rc8 {[%clk 0:05:17]} 26. Rec1  {[%clk 0:04:32]} Nxf4 {[%clk 0:04:12]} 27. Qxf4 {[%clk 0:04:34]} Re6  {[%clk 0:04:02]} 28. Bc5 {[%clk 0:02:53]} c6 {[%clk 0:03:42]} 29. Bxb6  {[%clk 0:02:21]} Qxb6 {[%clk 0:03:44]} 30. Rc5 {[%clk 0:02:08]} b4  {[%clk 0:03:43]} 31. Qd2 {[%clk 0:00:58]} bxa3 {[%clk 0:03:47]} 32. bxa3  {[%clk 0:00:58]} Qb3 {[%clk 0:03:47]} 33. Ra1 {[%clk 0:00:45]} Rb8  {[%clk 0:03:43]} 34. Rc2 {[%clk 0:00:31]} Rg6 {[%clk 0:02:33]} 35. Kh2  {[%clk 0:00:29]} h5 {[%clk 0:02:09]} 36. Rc4 {[%clk 0:00:09]} Qb2  {[%clk 0:01:40]} 37. Qxb2 {[%clk 0:00:06]} Rxb2 {[%clk 0:01:41]} 38. Kg1  {[%clk 0:00:08]} Rf6 {[%clk 0:01:38]} 39. Rf1 {[%clk 0:00:10]} Rb3  {[%clk 0:01:39]} 40. Rxd4 {[%clk 0:00:07]} Rxa3 {[%clk 0:01:41]} 41. Rd8+  {[%clk 0:00:08]} Kh7 {[%clk 0:01:43]} 42. f4 {[%clk 0:00:05]} Rg6  {[%clk 0:01:35]} 43. f5 {[%clk 0:00:05]} Rg3 {[%clk 0:01:37]} 44. Rc8  {[%clk 0:00:05]} Ra2 {[%clk 0:01:31]} 45. Rf2 {[%clk 0:00:06]} Rxf2  {[%clk 0:01:32]} 46. Kxf2 {[%clk 0:00:08]} Rxd3 47. Rxc6 {[%clk 0:00:10]} f6  {[%clk 0:01:36]} 48. Ra6 {[%clk 0:00:09]} a3 {[%clk 0:01:38]} 49. h4  {[%clk 0:00:10]} Kg8 {[%clk 0:01:35]} 50. Ra7 {[%clk 0:00:12]} Rb3  {[%clk 0:01:36]} 51. Ke2 {[%clk 0:00:13]} Rg3 {[%clk 0:01:36]} 52. Kf2  {[%clk 0:00:15]} Rb3 {[%clk 0:01:38]} 53. Ke2 {[%clk 0:00:17]} Rg3  {[%clk 0:01:40]} 54. Kf2 1/2-1/2

[Event "20 ans"]
[Date "2016.10.28"]
[Round "SF2"]
[White "Korobov, Anton"]
[Black "Vachier-Lagrave, Maxime"]
[Result "1/2-1/2"]
[WhiteElo "2714"]
[BlackElo "2795"]
[ECO "D85"]
[WhiteFed "UKR"]
[BlackFed "FRA"]
[FCGameId "156753847"]
[TimeControl "900+3"]

1. d4 {[%clk 0:15:05]} Nf6 {[%clk 0:15:05]} 2. c4 {[%clk 0:15:07]} g6  {[%clk 0:15:07]} 3. Nc3 {[%clk 0:15:08]} d5 {[%clk 0:15:08]} 4. cxd5  {[%clk 0:15:07]} Nxd5 {[%clk 0:15:10]} 5. e4 {[%clk 0:15:08]} Nxc3  {[%clk 0:15:11]} 6. bxc3 {[%clk 0:15:10]} Bg7 {[%clk 0:15:13]} 7. Nf3  {[%clk 0:14:57]} c5 {[%clk 0:15:14]} 8. Be3 {[%clk 0:14:51]} Qa5  {[%clk 0:15:05]} 9. Nd2 {[%clk 0:14:44]} Bd7 {[%clk 0:14:46]} 10. Be2  {[%clk 0:12:43]} cxd4 {[%clk 0:13:49]} 11. Nc4 {[%clk 0:11:59]} Qa4  {[%clk 0:13:14]} 12. cxd4 {[%clk 0:11:44]} O-O {[%clk 0:12:35]} 13. O-O  {[%clk 0:11:03]} Rc8 {[%clk 0:12:35]} 14. Qxa4 {[%clk 0:07:47]} Bxa4  {[%clk 0:12:35]} 15. Rab1 {[%clk 0:07:29]} Nc6 {[%clk 0:11:00]} 16. d5  {[%clk 0:07:11]} Nd4 {[%clk 0:10:55]} 17. Bxd4 {[%clk 0:07:02]} Bxd4  {[%clk 0:10:55]} 18. Rxb7 {[%clk 0:07:04]} Rab8 {[%clk 0:10:33]} 19. Rfb1  {[%clk 0:06:26]} Rxb7 {[%clk 0:10:12]} 20. Rxb7 {[%clk 0:06:28]} Kf8  {[%clk 0:08:46]} 21. g3 {[%clk 0:05:24]} Bd1 {[%clk 0:05:03]} 22. Bxd1  {[%clk 0:03:38]} Rxc4 {[%clk 0:05:04]} 23. d6 {[%clk 0:03:40]} exd6  {[%clk 0:03:36]} 24. Bb3 {[%clk 0:03:42]} Rc1+ {[%clk 0:03:38]} 25. Kg2  {[%clk 0:03:45]} f6 {[%clk 0:03:40]} 26. Rf7+ {[%clk 0:02:56]} Ke8  {[%clk 0:03:41]} 27. Rxh7 {[%clk 0:02:58]} Re1 {[%clk 0:03:32]} 28. f4  {[%clk 0:02:25]} g5 {[%clk 0:03:22]} 29. Kf3 {[%clk 0:01:50]} gxf4  {[%clk 0:03:15]} 30. gxf4 {[%clk 0:01:37]} Rf1+ {[%clk 0:02:48]} 31. Kg3  {[%clk 0:01:16]} Rg1+ {[%clk 0:02:37]} 32. Kh3 {[%clk 0:00:45]} Be3  {[%clk 0:02:12]} 33. f5 {[%clk 0:00:47]} Bd4 {[%clk 0:02:02]} 34. Bd5  {[%clk 0:00:41]} Kd8 {[%clk 0:01:37]} 35. Rf7 {[%clk 0:00:15]} Kc8  {[%clk 0:01:07]} 36. Kh4 {[%clk 0:00:14]} Rg5 {[%clk 0:01:08]} 37. a4  {[%clk 0:00:09]} a5 {[%clk 0:01:03]} 38. Rf8+ {[%clk 0:00:08]} Kc7  {[%clk 0:01:03]} 39. Rf7+ {[%clk 0:00:09]} Kc8 {[%clk 0:00:58]} 40. Rb7  {[%clk 0:00:11]} Bf2+ {[%clk 0:00:43]} 41. Kh3 {[%clk 0:00:13]} Bc5  {[%clk 0:00:44]} 42. Rb5 {[%clk 0:00:12]} Bb4 {[%clk 0:00:46]} 43. Rb6  {[%clk 0:00:11]} Kc7 {[%clk 0:00:29]} 44. Rb7+ {[%clk 0:00:12]} Kc8  {[%clk 0:00:30]} 45. Ra7 {[%clk 0:00:14]} Kd8 {[%clk 0:00:18]} 46. Be6  {[%clk 0:00:12]} Ke8 {[%clk 0:00:19]} 47. Rc7 {[%clk 0:00:10]} Rg1  {[%clk 0:00:17]} 48. Rc2 {[%clk 0:00:09]} Rg5 {[%clk 0:00:17]} 49. Bd5  {[%clk 0:00:09]} Kd8 {[%clk 0:00:19]} 50. Re2 {[%clk 0:00:09]} Kc7  {[%clk 0:00:19]} 51. Rc2+ {[%clk 0:00:10]} Kd8 {[%clk 0:00:20]} 52. Be6  {[%clk 0:00:12]} Bc5 {[%clk 0:00:19]} 53. Kh4 {[%clk 0:00:14]} Bb4  {[%clk 0:00:18]} 54. Rc1 {[%clk 0:00:16]} Ke7 {[%clk 0:00:19]} 55. Kh3  {[%clk 0:00:14]} Bc5 {[%clk 0:00:18]} 56. Rc3 {[%clk 0:00:15]} Kf8  {[%clk 0:00:11]} 57. e5 {[%clk 0:00:08]} Ke7 {[%clk 0:00:08]} 58. exd6+  {[%clk 0:00:06]} Kxd6 {[%clk 0:00:07]} 59. Rd3+ {[%clk 0:00:09]} Ke7  {[%clk 0:00:06]} 60. Rd7+ {[%clk 0:00:10]} Ke8 {[%clk 0:00:08]} 61. Rb7  {[%clk 0:00:11]} Bb4 {[%clk 0:00:07]} 62. Rb8+ {[%clk 0:00:07]} Ke7  {[%clk 0:00:08]} 63. Rb7+ {[%clk 0:00:07]} Kd6 {[%clk 0:00:08]} 64. Rd7+  {[%clk 0:00:07]} Ke5 {[%clk 0:00:10]} 65. Rd3 {[%clk 0:00:08]} Ke4  {[%clk 0:00:07]} 66. Rg3 {[%clk 0:00:10]} Rxg3+ {[%clk 0:00:07]} 67. Kxg3  {[%clk 0:00:12]} Be1+ {[%clk 0:00:08]} 68. Kg4 {[%clk 0:00:14]} Ke5  {[%clk 0:00:10]} 69. Kh5 {[%clk 0:00:10]} Kd6 {[%clk 0:00:11]} 70. Kg6  {[%clk 0:00:11]} Ke7 {[%clk 0:00:13]} 71. Bb3 {[%clk 0:00:13]} Bf2  {[%clk 0:00:14]} 72. Be6 {[%clk 0:00:15]} Be1 {[%clk 0:00:16]} 73. Bb3  {[%clk 0:00:17]} Bf2 {[%clk 0:00:18]} 74. Be6 {[%clk 0:00:19]} 1/2-1/2

[Event "20 ans"]
[Date "2016.10.27"]
[Round "tb1.1"]
[White "Azarov, Sergei"]
[Black "Hou, Yifan"]
[Result "0-1"]
[WhiteElo "2586"]
[BlackElo "2645"]
[ECO "B28"]
[WhiteFed "BLR"]
[BlackFed "CHN"]
[FCGameId "1609318413"]
[TimeControl "900+3"]

1. e4 {[%clk 0:05:05]} c5 {[%clk 0:05:05]} 2. Nf3 {[%clk 0:05:07]} a6  {[%clk 0:05:04]} 3. d4 {[%clk 0:05:06]} cxd4 {[%clk 0:05:05]} 4. Nxd4  {[%clk 0:05:08]} Nf6 {[%clk 0:05:07]} 5. Nc3 {[%clk 0:05:04]} e5  {[%clk 0:05:09]} 6. Nde2 {[%clk 0:04:34]} b5 {[%clk 0:04:46]} 7. Ng3  {[%clk 0:04:29]} Bb7 {[%clk 0:04:41]} 8. Bg5 {[%clk 0:04:09]} Bc5  {[%clk 0:03:58]} 9. Qf3 {[%clk 0:03:44]} Nc6 {[%clk 0:03:21]} 10. Bxf6  {[%clk 0:03:27]} Qxf6 {[%clk 0:03:08]} 11. Qxf6 {[%clk 0:03:16]} gxf6  {[%clk 0:03:08]} 12. Nd5 {[%clk 0:03:06]} O-O-O {[%clk 0:02:40]} 13. c3  {[%clk 0:02:59]} Ne7 {[%clk 0:02:42]} 14. Nxe7+ {[%clk 0:02:53]} Bxe7  {[%clk 0:02:43]} 15. a4 {[%clk 0:02:36]} Bc6 {[%clk 0:02:25]} 16. axb5  {[%clk 0:02:19]} axb5 {[%clk 0:02:27]} 17. Bd3 {[%clk 0:02:05]} Kc7  {[%clk 0:02:17]} 18. Ke2 {[%clk 0:02:03]} Rhg8 {[%clk 0:02:03]} 19. b4  {[%clk 0:01:29]} Ra8 {[%clk 0:01:37]} 20. Nf5 {[%clk 0:01:29]} Bd6  {[%clk 0:01:32]} 21. g3 {[%clk 0:01:28]} Rgb8 {[%clk 0:01:34]} 22. Bc2  {[%clk 0:00:57]} Bf8 {[%clk 0:01:35]} 23. f3 {[%clk 0:00:43]} d5  {[%clk 0:01:09]} 24. exd5 {[%clk 0:00:43]} Bxd5 {[%clk 0:01:11]} 25. Ne3  {[%clk 0:00:43]} Ba2 {[%clk 0:00:55]} 26. Be4 {[%clk 0:00:27]} Ra4  {[%clk 0:00:57]} 27. Bxh7 {[%clk 0:00:18]} Rba8 {[%clk 0:01:02]} 28. Rad1  {[%clk 0:00:18]} Ra3 {[%clk 0:01:02]} 29. Be4 {[%clk 0:00:19]} R8a6  {[%clk 0:01:01]} 30. Bd5 {[%clk 0:00:11]} Rxc3 {[%clk 0:00:53]} 31. Rc1  {[%clk 0:00:09]} Bxb4 {[%clk 0:00:44]} 32. Ra1 {[%clk 0:00:08]} Rxe3+  {[%clk 0:00:17]} 33. Kxe3 {[%clk 0:00:05]} Ra3+ {[%clk 0:00:19]} 34. Ke4  {[%clk 0:00:06]} 0-1

[Event "20 ans"]
[Date "2016.10.27"]
[Round "tb1.1"]
[White "Deac, Bogdan-Daniel"]
[Black "Radjabov, Teimour"]
[Result "1/2-1/2"]
[WhiteElo "2443"]
[BlackElo "2788"]
[ECO "D37"]
[WhiteFed "ROU"]
[BlackFed "AZE"]
[FCGameId "699846148"]
[TimeControl "900+3"]

1. d4 {[%clk 0:05:04]} Nf6 {[%clk 0:05:05]} 2. c4 {[%clk 0:05:05]} e6  {[%clk 0:05:07]} 3. Nc3 {[%clk 0:04:49]} d5 {[%clk 0:05:08]} 4. Nf3  {[%clk 0:04:45]} Be7 {[%clk 0:05:10]} 5. Bf4 {[%clk 0:04:36]} O-O  {[%clk 0:05:09]} 6. e3 {[%clk 0:04:37]} Nbd7 {[%clk 0:05:09]} 7. Be2  {[%clk 0:04:34]} c6 {[%clk 0:04:56]} 8. Qc2 {[%clk 0:02:47]} Nh5  {[%clk 0:04:11]} 9. O-O {[%clk 0:02:25]} Nxf4 {[%clk 0:02:53]} 10. exf4  {[%clk 0:02:27]} dxc4 {[%clk 0:02:40]} 11. Bxc4 {[%clk 0:02:29]} Nf6  {[%clk 0:02:37]} 12. Qe2 {[%clk 0:02:06]} Nd5 {[%clk 0:01:37]} 13. g3  {[%clk 0:02:08]} Bf6 {[%clk 0:01:37]} 14. Ne4 {[%clk 0:01:45]} b6  {[%clk 0:01:16]} 15. Rfd1 {[%clk 0:01:33]} Bb7 {[%clk 0:01:18]} 16. Ne5  {[%clk 0:01:35]} Rc8 {[%clk 0:01:14]} 17. Rac1 {[%clk 0:01:02]} Rc7  {[%clk 0:01:13]} 18. Bd3 {[%clk 0:00:49]} g6 {[%clk 0:01:07]} 19. a3  {[%clk 0:00:27]} Qe7 {[%clk 0:01:05]} 20. Ba6 {[%clk 0:00:20]} Ba8  {[%clk 0:01:07]} 21. Bc4 {[%clk 0:00:11]} c5 {[%clk 0:00:54]} 22. dxc5  {[%clk 0:00:10]} bxc5 {[%clk 0:00:56]} 23. Nxf6+ {[%clk 0:00:06]} Nxf6  {[%clk 0:00:35]} 24. Rd2 {[%clk 0:00:05]} Ne4 {[%clk 0:00:28]} 25. Rd3  {[%clk 0:00:05]} Nd6 {[%clk 0:00:30]} 26. Ba2 {[%clk 0:00:07]} Nf5  {[%clk 0:00:31]} 27. Nf3 {[%clk 0:00:08]} Rd8 {[%clk 0:00:27]} 28. Bb1  {[%clk 0:00:07]} Rcd7 {[%clk 0:00:16]} 29. Rxd7 {[%clk 0:00:08]} Qxd7  {[%clk 0:00:18]} 30. Be4 {[%clk 0:00:09]} Bxe4 {[%clk 0:00:14]} 31. Qxe4  {[%clk 0:00:11]} Qb5 {[%clk 0:00:17]} 32. b4 {[%clk 0:00:10]} cxb4  {[%clk 0:00:16]} 33. axb4 {[%clk 0:00:09]} Qd5 {[%clk 0:00:11]} 34. Qxd5  {[%clk 0:00:09]} exd5 {[%clk 0:00:10]} 35. Ra1 {[%clk 0:00:10]} Rd7  {[%clk 0:00:09]} 36. Ne5 {[%clk 0:00:09]} Rb7 {[%clk 0:00:12]} 37. Ra5  {[%clk 0:00:05]} d4 {[%clk 0:00:14]} 38. Nd3 {[%clk 0:00:05]} h5  {[%clk 0:00:12]} 39. Kf1 {[%clk 0:00:07]} Rc7 {[%clk 0:00:13]} 40. Nc5  {[%clk 0:00:07]} Ne7 {[%clk 0:00:15]} 41. Nd3 {[%clk 0:00:06]} Kg7  {[%clk 0:00:13]} 42. Ke2 {[%clk 0:00:07]} Rb7 {[%clk 0:00:13]} 43. Kd2  {[%clk 0:00:08]} Nc6 {[%clk 0:00:14]} 44. Ra4 {[%clk 0:00:09]} Rb6  {[%clk 0:00:12]} 45. Ra2 {[%clk 0:00:06]} Kf6 {[%clk 0:00:13]} 46. Ra4  {[%clk 0:00:06]} Kf5 {[%clk 0:00:13]} 47. f3 {[%clk 0:00:07]} Ke6  {[%clk 0:00:13]} 48. Kc2 {[%clk 0:00:07]} Kd5 {[%clk 0:00:15]} 49. Ne5 Nxb4+  {[%clk 0:00:06]} 50. Kd2 {[%clk 0:00:06]} a6 51. Nxf7 {[%clk 0:00:06]} Nc6  {[%clk 0:00:09]} 52. Ne5 Rb2+ {[%clk 0:00:04]} 53. Kc1 {[%clk 0:00:04]} Rb6  {[%clk 0:00:04]} 54. Nxg6 {[%clk 0:00:05]} Nb4 {[%clk 0:00:05]} 55. Ne5  {[%clk 0:00:06]} Rb5 {[%clk 0:00:06]} 56. Kd2 {[%clk 0:00:08]} a5  {[%clk 0:00:09]} 57. h3 {[%clk 0:00:08]} Na6 {[%clk 0:00:11]} 58. Ra2  {[%clk 0:00:08]} Nc5 {[%clk 0:00:13]} 59. Nd3 {[%clk 0:00:09]} Nxd3  {[%clk 0:00:06]} 60. Kxd3 {[%clk 0:00:11]} Rb3+ {[%clk 0:00:09]} 61. Kd2  {[%clk 0:00:11]} Rxf3 {[%clk 0:00:06]} 62. Rxa5+ {[%clk 0:00:13]} Kc4  {[%clk 0:00:08]} 63. Ra4+ {[%clk 0:00:14]} Kd5 {[%clk 0:00:10]} 64. Ra5+  {[%clk 0:00:15]} Kc4 {[%clk 0:00:09]} 65. Ra4+ {[%clk 0:00:18]} Kc5  {[%clk 0:00:12]} 66. Ra5+ {[%clk 0:00:19]} Kb4 {[%clk 0:00:14]} 67. Rxh5  {[%clk 0:00:16]} Rxg3 {[%clk 0:00:16]} 68. Rh8 {[%clk 0:00:17]} Kc4  {[%clk 0:00:17]} 69. Rc8+ {[%clk 0:00:19]} Kd5 {[%clk 0:00:19]} 70. f5  {[%clk 0:00:19]} Rxh3 {[%clk 0:00:18]} 71. f6 {[%clk 0:00:21]} Rf3  {[%clk 0:00:18]} 72. Rd8+ {[%clk 0:00:23]} Ke5 {[%clk 0:00:17]} 73. Re8+  {[%clk 0:00:24]} Kd5 {[%clk 0:00:15]} 74. Rd8+ {[%clk 0:00:26]} Ke5  {[%clk 0:00:15]} 75. Re8+ {[%clk 0:00:27]} Kd5 {[%clk 0:00:17]} 76. Rd8+  {[%clk 0:00:29]} 1/2-1/2

[Event "20 ans"]
[Date "2016.10.27"]
[Round "tb1.1"]
[White "Vocaturo, Daniele"]
[Black "Gharamian, Tigran"]
[Result "0-1"]
[WhiteElo "2606"]
[BlackElo "2638"]
[ECO "D37"]
[WhiteFed "ITA"]
[BlackFed "FRA"]
[FCGameId "1336653059"]
[TimeControl "900+3"]

1. d4 {[%clk 0:05:05]} Nf6 {[%clk 0:05:05]} 2. c4 {[%clk 0:05:05]} e6  {[%clk 0:05:07]} 3. Nc3 {[%clk 0:05:06]} d5 {[%clk 0:05:08]} 4. Nf3  {[%clk 0:04:57]} dxc4 {[%clk 0:05:10]} 5. e4 {[%clk 0:04:50]} Bb4  {[%clk 0:05:11]} 6. Bxc4 {[%clk 0:04:34]} Nxe4 {[%clk 0:05:12]} 7. O-O  {[%clk 0:04:33]} Nxc3 {[%clk 0:05:08]} 8. bxc3 {[%clk 0:04:34]} Be7  {[%clk 0:05:09]} 9. Ne5 {[%clk 0:04:21]} O-O {[%clk 0:04:51]} 10. Qg4  {[%clk 0:04:09]} Nc6 {[%clk 0:04:51]} 11. Re1 {[%clk 0:04:07]} f5  {[%clk 0:04:20]} 12. Qf3 {[%clk 0:04:08]} Nxe5 {[%clk 0:04:21]} 13. Rxe5  {[%clk 0:04:09]} Bd6 {[%clk 0:04:05]} 14. Re1 {[%clk 0:03:27]} Kh8  {[%clk 0:03:52]} 15. Bf4 {[%clk 0:03:20]} Bxf4 {[%clk 0:03:48]} 16. Qxf4  {[%clk 0:03:22]} Qd6 {[%clk 0:03:50]} 17. Re5 {[%clk 0:03:17]} Bd7  {[%clk 0:03:22]} 18. Rae1 {[%clk 0:03:14]} Rf6 {[%clk 0:03:15]} 19. f3  {[%clk 0:02:19]} Raf8 {[%clk 0:03:14]} 20. R1e2 {[%clk 0:02:15]} h6  {[%clk 0:02:59]} 21. Qe3 {[%clk 0:02:00]} b6 {[%clk 0:02:43]} 22. h4  {[%clk 0:01:41]} Bc8 {[%clk 0:02:33]} 23. Kf2 {[%clk 0:01:35]} Bd7  {[%clk 0:02:26]} 24. Bxe6 {[%clk 0:01:16]} Bxe6 {[%clk 0:02:11]} 25. Rxe6  {[%clk 0:01:17]} Qh2 {[%clk 0:02:03]} 26. Re7 {[%clk 0:01:05]} Rg6  {[%clk 0:01:51]} 27. Kf1 {[%clk 0:01:02]} Qh1+ {[%clk 0:01:04]} 28. Qg1  {[%clk 0:01:03]} Qxh4 {[%clk 0:01:05]} 29. Rxc7 {[%clk 0:01:05]} a5  {[%clk 0:00:57]} 30. Qf2 {[%clk 0:00:52]} Qh1+ {[%clk 0:00:59]} 31. Qg1  {[%clk 0:00:54]} Qh4 {[%clk 0:01:01]} 32. Rce7 {[%clk 0:00:55]} Kh7  {[%clk 0:01:02]} 33. R7e5 {[%clk 0:00:53]} f4 {[%clk 0:00:59]} 34. R2e4  {[%clk 0:00:52]} Rc8 {[%clk 0:00:56]} 35. Qf2 {[%clk 0:00:50]} Qh1+  {[%clk 0:00:57]} 36. Qg1 {[%clk 0:00:52]} Qxg1+ {[%clk 0:00:50]} 37. Kxg1  {[%clk 0:00:53]} Rxc3 38. Rxf4 {[%clk 0:00:55]} Rc2 {[%clk 0:00:54]} 39. Rg4  {[%clk 0:00:57]} Rxg4 {[%clk 0:00:56]} 40. fxg4 {[%clk 0:00:59]} Rxa2  {[%clk 0:00:58]} 41. Rb5 {[%clk 0:01:01]} Rd2 {[%clk 0:00:58]} 42. d5  {[%clk 0:00:54]} Rd4 {[%clk 0:00:57]} 43. Rxb6 {[%clk 0:00:50]} Rxd5  {[%clk 0:00:59]} 44. Ra6 {[%clk 0:00:52]} Rg5 {[%clk 0:00:58]} 45. Kf2  {[%clk 0:00:52]} Kg8 {[%clk 0:00:59]} 46. Ra7 {[%clk 0:00:53]} Kf8  {[%clk 0:01:01]} 47. Kf3 {[%clk 0:00:47]} Ke8 {[%clk 0:01:03]} 48. g3  {[%clk 0:00:38]} Kd8 {[%clk 0:01:06]} 49. Kf4 {[%clk 0:00:39]} Kc8  {[%clk 0:01:07]} 50. Rf7 {[%clk 0:00:33]} Kb8 {[%clk 0:01:10]} 51. Kf3  {[%clk 0:00:31]} Ka8 {[%clk 0:01:10]} 52. Re7 {[%clk 0:00:31]} a4  {[%clk 0:01:02]} 53. Re3 {[%clk 0:00:33]} Ra5 {[%clk 0:00:59]} 54. Ra3  {[%clk 0:00:35]} Kb7 {[%clk 0:01:01]} 55. Ke4 {[%clk 0:00:37]} Kc6  {[%clk 0:01:02]} 56. Kd4 {[%clk 0:00:39]} Rg5 {[%clk 0:01:01]} 57. Ke4  {[%clk 0:00:36]} Rxg4+ {[%clk 0:00:50]} 58. Kf5 {[%clk 0:00:38]} h5  {[%clk 0:00:52]} 59. Re3 {[%clk 0:00:39]} g6+ {[%clk 0:00:54]} 60. Kf6  {[%clk 0:00:41]} Kc5 {[%clk 0:00:55]} 61. Kg7 {[%clk 0:00:40]} Kb4  {[%clk 0:00:57]} 62. Kh6 {[%clk 0:00:42]} a3 {[%clk 0:01:00]} 0-1

[Event "20 ans"]
[Date "2016.10.27"]
[Round "tb1.2"]
[White "Hou, Yifan"]
[Black "Azarov, Sergei"]
[Result "1-0"]
[WhiteElo "2645"]
[BlackElo "2586"]
[ECO "C47"]
[WhiteFed "CHN"]
[BlackFed "BLR"]
[FCGameId "-1962638594"]
[TimeControl "900+3"]

1. e4  e5  2. Nc3  Nf6   3. Nf3  Nc6  4. d4   Bb4  5. dxe5  Nxe4   6. a3  Bxc3+  7. bxc3   d5  8. c4  d4   9. Bd3  Bf5  10. O-O  Bg6   11. Bb2  Qd7  12. Nxd4   Nxd4  13. Bxe4  Bxe4   14. Qxd4  Qxd4  15. Bxd4   O-O-O  16. c3  Bd3   17. Rfe1  Bxc4  18. e6   fxe6  19. Bxg7  Rhg8   20. Be5  Rd2  21. Rad1   Ra2  22. Ra1  Rxa1   23. Rxa1  Rd8  24. Re1   Rd2  25. h4  Ra2   26. Re3  Rxa3  27. Rg3   Ra1+  28. Kh2  Re1   29. Rg8+  Kd7  30. Rg7+   Kc6  31. Rxc7+  Kd5   32. Bd4  b5  33. Rd7+   Ke4  34. Bxa7  Ra1   35. Rxh7  Bd5  36. Be3   Kd3  37. Rc7  Ra4   38. Kg3  Re4  39. h5   Bc4  40. h6  Re5   41. Rc5  Bd5  42. Rxb5   Rf5  43. Rb8  Rf6   44. h7  Rg6+  45. Kh4   1-0

[Event "20 ans"]
[Date "2016.10.27"]
[Round "tb1.2"]
[White "Radjabov, Teimour"]
[Black "Deac, Bogdan-Daniel"]
[Result "1-0"]
[WhiteElo "2788"]
[BlackElo "2443"]
[ECO "A06"]
[WhiteFed "AZE"]
[BlackFed "ROU"]
[FCGameId "-994899087"]
[TimeControl "900+3"]

1. Nf3  d5  2. g3  Nc6   3. d4  Bf5  4. Bg2   Qd7  5. O-O  e6   6. c4  Rd8  7. Nc3   Nf6  8. Bg5  Be7   9. cxd5  Nxd5  10. Bxe7   Qxe7  11. Qb3  Qb4   12. Qxb4  Ndxb4  13. Rfd1   Nd5  14. e3  Nce7   15. Ne5  f6  16. Nc4   c6  17. Rac1  Bg6   18. Na5  Nxc3  19. Rxc3   Rd7  20. Rcc1  Kf7   21. Nb3  Rc7  22. Nc5   Rhc8  23. b4  b6   24. Nb3  Nd5  25. a3   f5  26. Bf3  Ke7   27. Kg2  Bf7  28. Nd2   Nf6  29. Nc4  Nd7   30. Rc2  g5  31. Kg1   g4  32. Bg2  h5   33. Rdc1  Bg6  34. Rc3   Bf7  35. h4  gxh3   36. Bxh3  c5  37. dxc5   bxc5  38. b5  Nb6   39. Bf1  Be8  40. Rb1   Rd8  41. Rcc1  Kf6   42. Be2  Rd5  43. Kf1   Rh7  44. Bf3  Rd3   45. Ke2  Rd8  46. Na5   Rc8  47. Nb7  Rhc7   48. Nd6  Rd8  49. Nxe8+   Rxe8  50. Bc6  Rb8   51. Rxc5  Nd7  52. Rcc1   Ne5  53. Rb4  Rb6   54. Rh1  Nxc6  55. bxc6   Rcxc6  56. Rxh5  Rxb4   57. axb4  Rc2+  58. Kf3   Rb2  59. Rh4  e5   60. Rc4  e4+  61. Kg2   Kg5  62. Rd4  a6   63. Rc4  Rb1  64. Rc6   Rxb4  65. Rxa6  Rb2   66. Ra8  Rb1  67. Rg8+   Kf6  68. g4  fxg4   69. Rxg4  Kf5  70. Rh4   Rb2  71. Kg3  Rc2   72. Rf4+  Ke5  73. Kg4   Rd2  74. Rf8  Rb2   75. Rf7  Rc2  76. Rf5+   Ke6  77. Kg5  Rd2   78. Rf8  Rb2  79. Kg6   Ke7  80. Rf4  Kd6   81. Rf6+  Ke5  82. Rf8   Rc2  83. Kg7  Ke6   84. Rf6+  Ke5  85. Kf7   Rc7+  86. Kg6  Rc2   87. Rf8  Rb2  88. Rf7   Rc2  89. Kg7  Ke6   90. Rf4  Ke5  91. Kf7   Rc7+  92. Kg6  Rc2   93. Kg5  Rb2  94. Kg4   Rc2  95. Kg3  Rb2   96. Rh4  Rc2  97. Rh8   Kf5  98. Re8  Rb2   99. Ra8  Rc2  100. Kh4   Ke5  101. Re8+  Kf5   102. Kg3  Rb2  103. Rf8+   Ke5  104. Kg4  Rc2   105. Kg5  Rb2  106. Rf5+   Ke6  107. Kg6  Rc2   108. Rf8  Ke5 109. Rf5+  Ke6   110. Kg5  Rb2  111. Kg4   Rc2  112. Rf4  Ke5   113. Kg3  Rb2  114. Rh4   Kf5  115. Rh5+  Ke6   116. Rh2  Rc2  117. Kf4   Kd5  118. Rh5+  Ke6   119. Rh2  Kd5  120. Kf5   Rb2  121. Rg2  Ra2   122. Kf6  Ra6+  123. Kf5   Ra2  124. Rh2  Rb2   125. Kf4  Ra2  126. Kg3   Ke5  127. f4+  1-0

[Event "20 ans"]
[Date "2016.10.27"]
[Round "tb1.2"]
[White "Gharamian, Tigran"]
[Black "Vocaturo, Daniele"]
[Result "1-0"]
[WhiteElo "2638"]
[BlackElo "2606"]
[ECO "B40"]
[WhiteFed "FRA"]
[BlackFed "ITA"]
[FCGameId "590020932"]
[TimeControl "900+3"]

1. e4  c5  2. Nf3  e6   3. g3  Nf6  4. e5   Nd5  5. Bg2  Nc6   6. O-O  d6  7. exd6   Bxd6  8. d4  O-O   9. c4  Nb6  10. dxc5   Bxc5  11. Qe2  e5   12. Nc3  Bg4  13. Be3   Bxe3  14. fxe3  Qe7   15. h3  Bh5  16. g4   Bg6  17. Rad1  Qb4   18. Nh4  Qxc4  19. Nxg6   hxg6  20. Qxc4  Nxc4   21. Nd5  Rad8  22. b3   Nd6  23. Nc3  Nc8   24. Ne4  Rxd1  25. Rxd1   Rd8  26. Rc1  Nd6   27. Nc5  b6  28. Bxc6   bxc5  29. Rxc5 Kf8  30. Bd5   Ke7  31. e4  Kf6   32. h4  Rd7  33. g5+   Ke7  34. Kf2  Ne8   35. Bc6  Rd2+  36. Ke3   Rxa2  37. Rxe5+  Kd6   38. Rxe8  Kxc6 39. Re7  Ra3   40. Rxf7  Rxb3+  41. Kd4   Rb7  42. Rxb7  Kxb7 43. Kd5 Kc7   44. Ke6  a5  45. e5   a4  46. Kf7  a3   47. e6  a2  48. e7   a1=Q  49. e8=Q  Qd4   50. Qe7+  Kc8  51. Qe8+   Kc7  52. Qe7+  Kc6   53. Kxg6  Qxh4  54. Kxg7   Kd5  55. Qf7+ Ke4  56. Qc4+   1-0